[Event "*** SCC Grand Prix: Titled Tuesday Blitz"]
[Site "Chess.com"]
[Date "2020.09.08"]
[Round "6"]
[White "tmr88"]
[Black "Nils_03"]
[Result "1-0"]
[WhiteElo "2067"]
[BlackElo "2263"]
[TimeControl "180+1"]
[EndTime "11:07:38 PDT"]
[Termination "tmr88 won by checkmate"]

1. e4 {[%clk 0:03:00.9]} 1... c5 {[%clk 0:02:58.3]} 2. Nf3 {[%clk 0:03:00.3]}
2... Nf6 {[%clk 0:02:58.8]} 3. e5 {[%clk 0:02:58.7]} 3... Nd5 {[%clk 0:02:56.9]}
4. Bc4 {[%clk 0:02:58.4]} 4... e6 {[%clk 0:02:56]} 5. Nc3 {[%clk 0:02:58.3]}
5... Nxc3 {[%clk 0:02:52.2]} 6. dxc3 {[%clk 0:02:52.6]} 6... d5 {[%clk
0:02:51.6]} 7. exd6 {[%clk 0:02:50.5]} 7... Qxd6 {[%clk 0:02:51.8]} 8. Qe2
{[%clk 0:02:41.1]} 8... Nc6 {[%clk 0:02:50.7]} 9. Bd2 {[%clk 0:02:31.7]} 9...
Be7 {[%clk 0:02:45]} 10. O-O-O {[%clk 0:02:31.3]} 10... O-O {[%clk 0:02:43.1]}
11. Kb1 {[%clk 0:02:30.5]} 11... Qc7 {[%clk 0:02:39.6]} 12. h4 {[%clk 0:02:28]}
12... a6 {[%clk 0:02:39.4]} 13. h5 {[%clk 0:02:26.7]} 13... b5 {[%clk
0:02:38.7]} 14. Bd3 {[%clk 0:02:25.8]} 14... Bb7 {[%clk 0:02:36.6]} 15. Qe4
{[%clk 0:02:16.7]} 15... f5 {[%clk 0:02:22.7]} 16. Qxe6+ {[%clk 0:02:15.7]}
16... Kh8 {[%clk 0:02:23.3]} 17. h6 {[%clk 0:02:05.2]} 17... g6 {[%clk
0:02:19.1]} 18. Bg5 {[%clk 0:01:58.8]} 18... c4 {[%clk 0:02:16.7]} 19. Be2
{[%clk 0:01:47.5]} 19... Rae8 {[%clk 0:02:12.8]} 20. Qd7 {[%clk 0:01:33.4]}
20... Qb8 {[%clk 0:01:46.7]} 21. Be3 {[%clk 0:01:15.9]} 21... Rd8 {[%clk
0:01:40.5]} 22. Qe6 {[%clk 0:00:59.1]} 22... Rd6 {[%clk 0:01:33.7]} 23. Rxd6
{[%clk 0:00:56.2]} 23... Qxd6 {[%clk 0:01:34.6]} 24. Qxd6 {[%clk 0:00:55.7]}
24... Bxd6 {[%clk 0:01:35.5]} 25. Rd1 {[%clk 0:00:55.2]} 25... Rd8 {[%clk
0:01:31.6]} 26. Bg5 {[%clk 0:00:53.5]} 26... Be7 {[%clk 0:01:25.7]} 27. Bxe7
{[%clk 0:00:46.8]} 27... Rxd1+ {[%clk 0:01:24.2]} 28. Bxd1 {[%clk 0:00:46.5]}
28... Nxe7 {[%clk 0:01:25.1]} 29. Kc1 {[%clk 0:00:44.8]} 29... Bxf3 {[%clk
0:01:23.6]} 30. Bxf3 {[%clk 0:00:43.7]} 30... Ng8 {[%clk 0:01:24.5]} 31. Bb7
{[%clk 0:00:43.4]} 31... Nxh6 {[%clk 0:01:25.4]} 32. Bxa6 {[%clk 0:00:43.7]}
32... Ng4 {[%clk 0:01:25]} 33. f3 {[%clk 0:00:43.3]} 33... Ne3 {[%clk 0:01:24]}
34. g3 {[%clk 0:00:41.4]} 34... Nf1 {[%clk 0:01:21.9]} 35. g4 {[%clk 0:00:40.3]}
35... fxg4 {[%clk 0:01:13.8]} 36. fxg4 {[%clk 0:00:40.2]} 36... Ne3 {[%clk
0:01:14.5]} 37. g5 {[%clk 0:00:37.4]} 37... h5 {[%clk 0:01:11.3]} 38. gxh6
{[%clk 0:00:36.5]} 38... g5 {[%clk 0:01:11.8]} 39. Bxb5 {[%clk 0:00:36.5]} 39...
g4 {[%clk 0:01:12.2]} 40. Kd2 {[%clk 0:00:35.5]} 40... Nd5 {[%clk 0:00:52.6]}
41. Bxc4 {[%clk 0:00:34.8]} 41... Nf4 {[%clk 0:00:52.7]} 42. Bf1 {[%clk
0:00:27.8]} 42... g3 {[%clk 0:00:51.1]} 43. a4 {[%clk 0:00:27.7]} 43... g2
{[%clk 0:00:48.9]} 44. Bxg2 {[%clk 0:00:27]} 44... Nxg2 {[%clk 0:00:49.7]} 45.
a5 {[%clk 0:00:27.4]} 45... Nf4 {[%clk 0:00:50.3]} 46. a6 {[%clk 0:00:27.7]}
46... Nd5 {[%clk 0:00:51.2]} 47. a7 {[%clk 0:00:25.7]} 47... Nb6 {[%clk
0:00:52.1]} 48. Kd3 {[%clk 0:00:23.1]} 48... Kh7 {[%clk 0:00:51.6]} 49. c4
{[%clk 0:00:23]} 49... Kxh6 {[%clk 0:00:52.5]} 50. c5 {[%clk 0:00:23]} 50... Na8
{[%clk 0:00:53]} 51. b4 {[%clk 0:00:22.9]} 51... Kg7 {[%clk 0:00:53.9]} 52. b5
{[%clk 0:00:22.9]} 52... Kf8 {[%clk 0:00:54.8]} 53. b6 {[%clk 0:00:22.9]} 53...
Ke8 {[%clk 0:00:54.6]} 54. b7 {[%clk 0:00:23]} 54... Kd7 {[%clk 0:00:55.5]} 55.
bxa8=Q {[%clk 0:00:21.7]} 55... Kc7 {[%clk 0:00:56.4]} 56. Qb8+ {[%clk
0:00:20.9]} 56... Kc6 {[%clk 0:00:56.2]} 57. a8=Q+ {[%clk 0:00:19.7]} 57... Kxc5
{[%clk 0:00:57.1]} 58. Qa5+ {[%clk 0:00:18.3]} 58... Kc6 {[%clk 0:00:56.1]} 59.
Qbb6+ {[%clk 0:00:17.8]} 59... Kd7 {[%clk 0:00:57]} 60. Qaa7+ {[%clk 0:00:17.7]}
60... Ke8 {[%clk 0:00:57.9]} 61. Qbb8# {[%clk 0:00:17.6]} 1-0

[Event "*** SCC Grand Prix: Titled Tuesday Blitz"]
[Site "Chess.com"]
[Date "2020.09.08"]
[Round "6"]
[White "Chessdemon2019"]
[Black "GothamChess"]
[Result "0-1"]
[WhiteElo "2388"]
[BlackElo "2567"]
[TimeControl "180+1"]
[EndTime "11:07:39 PDT"]
[Termination "GothamChess won by checkmate"]

1. e4 {[%clk 0:03:00.9]} 1... e6 {[%clk 0:03:00.2]} 2. d4 {[%clk 0:03:00.8]}
2... b6 {[%clk 0:03:00.2]} 3. c4 {[%clk 0:03:00.2]} 3... Bb7 {[%clk 0:03:00]} 4.
Nc3 {[%clk 0:03:00.3]} 4... Bb4 {[%clk 0:02:59.8]} 5. f3 {[%clk 0:03:00.6]} 5...
f5 {[%clk 0:02:58.5]} 6. exf5 {[%clk 0:02:57.8]} 6... Nh6 {[%clk 0:02:57.2]} 7.
fxe6 {[%clk 0:02:52]} 7... Nf5 {[%clk 0:02:56.6]} 8. Bd3 {[%clk 0:02:39.9]} 8...
Qh4+ {[%clk 0:02:54.7]} 9. Kf1 {[%clk 0:02:34.7]} 9... O-O {[%clk 0:02:26.4]}
10. Nge2 {[%clk 0:02:20.4]} 10... dxe6 {[%clk 0:01:50.4]} 11. Ne4 {[%clk
0:01:41.7]} 11... Bxe4 {[%clk 0:00:48.5]} 12. Bxe4 {[%clk 0:01:33.4]} 12... Ne3+
{[%clk 0:00:45]} 13. Bxe3 {[%clk 0:01:30.9]} 13... Qxe4 {[%clk 0:00:44.6]} 14.
Bf2 {[%clk 0:01:28.3]} 14... Qg6 {[%clk 0:00:40]} 15. a3 {[%clk 0:01:26.9]}
15... Bd6 {[%clk 0:00:39.5]} 16. Qb1 {[%clk 0:01:25.9]} 16... Qh6 {[%clk
0:00:33.3]} 17. Qe4 {[%clk 0:01:24.3]} 17... Nd7 {[%clk 0:00:34]} 18. Be3 {[%clk
0:01:17.6]} 18... Qf6 {[%clk 0:00:31.5]} 19. Kf2 {[%clk 0:01:09.9]} 19... Rae8
{[%clk 0:00:30.8]} 20. Rhf1 {[%clk 0:00:50.7]} 20... e5 {[%clk 0:00:31]} 21. d5
{[%clk 0:00:49.6]} 21... Nc5 {[%clk 0:00:30]} 22. Qg4 {[%clk 0:00:44.7]} 22...
e4 {[%clk 0:00:25.4]} 23. Kg1 {[%clk 0:00:41.9]} 23... Qe5 {[%clk 0:00:11.2]}
24. f4 {[%clk 0:00:40.4]} 24... Qf6 {[%clk 0:00:05.7]} 25. Bd4 {[%clk
0:00:40.6]} 25... Qf7 {[%clk 0:00:06.2]} 26. b4 {[%clk 0:00:29.4]} 26... Nb3
{[%clk 0:00:04.3]} 27. Rae1 {[%clk 0:00:24.3]} 27... a5 {[%clk 0:00:04.2]} 28.
Bc3 {[%clk 0:00:22.2]} 28... axb4 {[%clk 0:00:04]} 29. axb4 {[%clk 0:00:22.3]}
29... b5 {[%clk 0:00:03]} 30. Nd4 {[%clk 0:00:20.1]} 30... Nxd4 {[%clk 0:00:03]}
31. Bxd4 {[%clk 0:00:20.5]} 31... bxc4 {[%clk 0:00:03.6]} 32. f5 {[%clk
0:00:18.8]} 32... Bxb4 {[%clk 0:00:03.5]} 33. Rc1 {[%clk 0:00:17.9]} 33... Bd2
{[%clk 0:00:03.3]} 34. Rxc4 {[%clk 0:00:17.4]} 34... e3 {[%clk 0:00:04]} 35. d6
{[%clk 0:00:10.1]} 35... e2 {[%clk 0:00:03.5]} 36. Rxc7 {[%clk 0:00:09]} 36...
exf1=Q+ {[%clk 0:00:03.2]} 37. Kxf1 {[%clk 0:00:09.1]} 37... Qxf5+ {[%clk
0:00:03.8]} 38. Qxf5 {[%clk 0:00:08.7]} 38... Rxf5+ {[%clk 0:00:04.7]} 39. Kg1
{[%clk 0:00:08.9]} 39... Re1# {[%clk 0:00:05.3]} 0-1

[Event "*** SCC Grand Prix: Titled Tuesday Blitz"]
[Site "Chess.com"]
[Date "2020.09.08"]
[Round "6"]
[White "ARMQUEEN"]
[Black "QuintilianoR"]
[Result "0-1"]
[WhiteElo "2454"]
[BlackElo "2614"]
[TimeControl "180+1"]
[EndTime "11:07:40 PDT"]
[Termination "QuintilianoR won by resignation"]

1. e4 {[%clk 0:03:00.9]} 1... c5 {[%clk 0:02:59.3]} 2. Nc3 {[%clk 0:03:00]} 2...
Nc6 {[%clk 0:02:58.6]} 3. Bb5 {[%clk 0:02:59]} 3... Nd4 {[%clk 0:02:58.4]} 4.
Bc4 {[%clk 0:02:57.5]} 4... a6 {[%clk 0:02:57]} 5. Nf3 {[%clk 0:02:54.2]} 5...
b5 {[%clk 0:02:56]} 6. Bd5 {[%clk 0:02:53.6]} 6... Rb8 {[%clk 0:02:55.2]} 7.
Nxd4 {[%clk 0:02:53.7]} 7... cxd4 {[%clk 0:02:56.1]} 8. Ne2 {[%clk 0:02:53.2]}
8... Nf6 {[%clk 0:02:55.8]} 9. Nxd4 {[%clk 0:02:36.7]} 9... Nxd5 {[%clk
0:02:54.6]} 10. exd5 {[%clk 0:02:37.6]} 10... Bb7 {[%clk 0:02:54.9]} 11. Qh5
{[%clk 0:02:26]} 11... g6 {[%clk 0:02:22.4]} 12. Qe5 {[%clk 0:02:23.7]} 12... f6
{[%clk 0:02:22.2]} 13. Qe4 {[%clk 0:02:21.1]} 13... e6 {[%clk 0:02:14.5]} 14.
O-O {[%clk 0:02:16.9]} 14... Bxd5 {[%clk 0:02:13.4]} 15. Qe2 {[%clk 0:02:16.5]}
15... Qb6 {[%clk 0:02:11.5]} 16. Nb3 {[%clk 0:02:12]} 16... Qc6 {[%clk
0:02:04.4]} 17. Nd4 {[%clk 0:02:04]} 17... Qc7 {[%clk 0:01:59]} 18. d3 {[%clk
0:02:01.2]} 18... Bd6 {[%clk 0:01:57.6]} 19. h3 {[%clk 0:01:57.3]} 19... O-O
{[%clk 0:01:57]} 20. Bh6 {[%clk 0:01:56.2]} 20... Rf7 {[%clk 0:01:53.5]} 21.
Rac1 {[%clk 0:01:55.5]} 21... Bh2+ {[%clk 0:01:46.9]} 22. Kh1 {[%clk 0:01:54.5]}
22... Be5 {[%clk 0:01:46.1]} 23. Be3 {[%clk 0:01:45.5]} 23... Qd6 {[%clk
0:01:37.2]} 24. c4 {[%clk 0:01:43]} 24... Bxg2+ {[%clk 0:01:33.8]} 25. Kxg2
{[%clk 0:01:41.7]} 25... Bxd4 {[%clk 0:01:34.7]} 26. cxb5 {[%clk 0:01:39.5]}
26... axb5 {[%clk 0:01:29]} 27. Rc2 {[%clk 0:01:33.2]} 27... Bxe3 {[%clk
0:01:22.8]} 28. Qxe3 {[%clk 0:01:32.8]} 28... Qd5+ {[%clk 0:01:22.8]} 29. f3
{[%clk 0:01:25.3]} 29... Qxa2 {[%clk 0:01:21.6]} 30. Rfc1 {[%clk 0:01:23]} 30...
Kg7 {[%clk 0:01:17.6]} 31. Qd4 {[%clk 0:01:06.7]} 31... Qa4 {[%clk 0:01:07.9]}
32. Qd6 {[%clk 0:01:04.4]} 32... Rbf8 {[%clk 0:00:43.1]} 33. Rc7 {[%clk
0:01:01.7]} 33... Qh4 {[%clk 0:00:42.1]} 34. R1c5 {[%clk 0:00:53.8]} 34... Qb4
{[%clk 0:00:31.1]} 35. Rxd7 {[%clk 0:00:44.4]} 35... Rxd7 {[%clk 0:00:31.1]} 36.
Qxd7+ {[%clk 0:00:44.2]} 36... Rf7 {[%clk 0:00:32]} 37. Qxb5 {[%clk 0:00:37.9]}
37... Qd2+ {[%clk 0:00:31.7]} 38. Kg3 {[%clk 0:00:34.9]} 38... Qe1+ {[%clk
0:00:29.9]} 39. Kg2 {[%clk 0:00:35]} 39... Qd2+ {[%clk 0:00:29.5]} 40. Kg1
{[%clk 0:00:35.1]} 40... Ra7 {[%clk 0:00:27.8]} 41. Qa5 {[%clk 0:00:06.4]} 41...
Rxa5 {[%clk 0:00:26.6]} 42. Rxa5 {[%clk 0:00:06.2]} 42... Qxa5 {[%clk
0:00:26.5]} 0-1

[Event "*** SCC Grand Prix: Titled Tuesday Blitz"]
[Site "Chess.com"]
[Date "2020.09.08"]
[Round "6"]
[White "BUITRONGHAO"]
[Black "aa175"]
[Result "1-0"]
[WhiteElo "2573"]
[BlackElo "2397"]
[TimeControl "180+1"]
[EndTime "11:07:41 PDT"]
[Termination "BUITRONGHAO won on time"]

1. e4 {[%clk 0:03:00.9]} 1... c5 {[%clk 0:02:58.4]} 2. Nf3 {[%clk 0:03:00.3]}
2... d6 {[%clk 0:02:58.3]} 3. d4 {[%clk 0:03:00.6]} 3... cxd4 {[%clk 0:02:58.9]}
4. Nxd4 {[%clk 0:03:01.1]} 4... Nf6 {[%clk 0:02:59.6]} 5. Nc3 {[%clk 0:03:01.2]}
5... a6 {[%clk 0:03:00.1]} 6. g3 {[%clk 0:03:01.7]} 6... b5 {[%clk 0:02:56.9]}
7. Bg2 {[%clk 0:02:57.6]} 7... Bb7 {[%clk 0:02:56.9]} 8. O-O {[%clk 0:02:57.1]}
8... Nbd7 {[%clk 0:02:55.5]} 9. Re1 {[%clk 0:02:41.7]} 9... e6 {[%clk 0:02:45]}
10. b3 {[%clk 0:02:34.6]} 10... Be7 {[%clk 0:02:42.8]} 11. Bb2 {[%clk 0:02:35]}
11... O-O {[%clk 0:02:42.1]} 12. a3 {[%clk 0:02:34.7]} 12... Rc8 {[%clk
0:02:40.8]} 13. Na2 {[%clk 0:02:23.7]} 13... d5 {[%clk 0:02:37.5]} 14. exd5
{[%clk 0:02:16]} 14... Bxd5 {[%clk 0:02:38.4]} 15. Nf3 {[%clk 0:02:06.1]} 15...
Bc5 {[%clk 0:02:31.8]} 16. Nb4 {[%clk 0:01:58.3]} 16... Ng4 {[%clk 0:02:12.9]}
17. Re2 {[%clk 0:01:43.4]} 17... Qb6 {[%clk 0:02:00.6]} 18. Nd3 {[%clk
0:01:42.7]} 18... Rfd8 {[%clk 0:01:40.1]} 19. h3 {[%clk 0:01:40.7]} 19... Nxf2
{[%clk 0:01:20.8]} 20. Nxf2 {[%clk 0:01:16.7]} 20... Bxf3 {[%clk 0:01:01.1]} 21.
Bxf3 {[%clk 0:01:13.6]} 21... Ne5 {[%clk 0:01:00.5]} 22. Bxe5 {[%clk 0:01:09.2]}
22... Rxd1+ {[%clk 0:00:52.4]} 23. Rxd1 {[%clk 0:01:10.1]} 23... f6 {[%clk
0:00:34.3]} 24. Bb2 {[%clk 0:01:09]} 24... Bxf2+ {[%clk 0:00:29.9]} 25. Rxf2
{[%clk 0:01:09.2]} 25... Rxc2 {[%clk 0:00:29.8]} 26. Bd4 {[%clk 0:01:02.9]}
26... Qc7 {[%clk 0:00:28.6]} 27. Kg2 {[%clk 0:00:32.5]} 27... Rxf2+ {[%clk
0:00:25.1]} 28. Bxf2 {[%clk 0:00:32.2]} 28... Qc3 {[%clk 0:00:20.2]} 29. Rd8+
{[%clk 0:00:31.3]} 29... Kf7 {[%clk 0:00:20.5]} 30. Ra8 {[%clk 0:00:31.8]} 30...
a5 {[%clk 0:00:14.8]} 31. h4 {[%clk 0:00:25.1]} 31... Kg6 {[%clk 0:00:05.4]} 32.
Ra7 {[%clk 0:00:17.2]} 32... h5 {[%clk 0:00:05.2]} 33. Be4+ {[%clk 0:00:13.5]}
33... f5 {[%clk 0:00:05]} 34. Bf3 {[%clk 0:00:14.4]} 34... e5 {[%clk 0:00:04.1]}
35. Ra6+ {[%clk 0:00:14]} 35... Kh7 {[%clk 0:00:04.2]} 36. Bxh5 {[%clk
0:00:14.2]} 36... e4 {[%clk 0:00:04.2]} 37. Bg6+ {[%clk 0:00:14.4]} 37... Kh6
{[%clk 0:00:03.1]} 38. Bxf5+ {[%clk 0:00:13.9]} 38... g6 {[%clk 0:00:02.5]} 39.
Bxe4 {[%clk 0:00:14.5]} 1-0

[Event "*** SCC Grand Prix: Titled Tuesday Blitz"]
[Site "Chess.com"]
[Date "2020.09.08"]
[Round "6"]
[White "mfwagnerpeixoto"]
[Black "juli2512"]
[Result "0-1"]
[WhiteElo "2237"]
[BlackElo "2057"]
[TimeControl "180+1"]
[EndTime "11:07:41 PDT"]
[Termination "juli2512 won by checkmate"]

1. d4 {[%clk 0:03:00.9]} 1... f5 {[%clk 0:02:59.3]} 2. Nf3 {[%clk 0:03:00]} 2...
Nf6 {[%clk 0:02:59.7]} 3. c3 {[%clk 0:03:00.3]} 3... g6 {[%clk 0:03:00.2]} 4.
Qb3 {[%clk 0:02:59.6]} 4... e6 {[%clk 0:02:53.4]} 5. Bg5 {[%clk 0:02:56.1]} 5...
Bg7 {[%clk 0:02:52.4]} 6. Nbd2 {[%clk 0:02:56.1]} 6... h6 {[%clk 0:02:42.3]} 7.
Bxf6 {[%clk 0:02:54]} 7... Qxf6 {[%clk 0:02:38.3]} 8. e4 {[%clk 0:02:54.9]} 8...
O-O {[%clk 0:02:28.2]} 9. Bd3 {[%clk 0:02:49.8]} 9... d6 {[%clk 0:01:52.9]} 10.
exf5 {[%clk 0:02:41.1]} 10... gxf5 {[%clk 0:01:50.5]} 11. O-O-O {[%clk
0:02:36.5]} 11... a5 {[%clk 0:01:47.3]} 12. a4 {[%clk 0:02:24.8]} 12... Na6
{[%clk 0:01:33.4]} 13. Rde1 {[%clk 0:02:20.4]} 13... Bd7 {[%clk 0:01:21.2]} 14.
Bb5 {[%clk 0:02:04.4]} 14... c6 {[%clk 0:01:10.5]} 15. Bc4 {[%clk 0:01:56.9]}
15... d5 {[%clk 0:00:46.4]} 16. Bxa6 {[%clk 0:01:50.6]} 16... bxa6 {[%clk
0:00:45.7]} 17. Ne5 {[%clk 0:01:48.9]} 17... Be8 {[%clk 0:00:36.2]} 18. Qa3
{[%clk 0:01:39.6]} 18... Qd8 {[%clk 0:00:28.7]} 19. Re3 {[%clk 0:01:20.1]} 19...
Kh7 {[%clk 0:00:21.9]} 20. Rhe1 {[%clk 0:01:17.2]} 20... Rb8 {[%clk 0:00:19.4]}
21. Nd3 {[%clk 0:01:06.8]} 21... Bf7 {[%clk 0:00:17]} 22. Nc5 {[%clk 0:01:01]}
22... Re8 {[%clk 0:00:16.7]} 23. f4 {[%clk 0:00:48.1]} 23... Rb6 {[%clk
0:00:16]} 24. g3 {[%clk 0:00:35.8]} 24... Qb8 {[%clk 0:00:15.7]} 25. Nd7 {[%clk
0:00:28]} 25... Bf8 {[%clk 0:00:12.1]} 26. Qa2 {[%clk 0:00:17.1]} 26... Qb7
{[%clk 0:00:10.6]} 27. Nxb6 {[%clk 0:00:15.3]} 27... Qxb6 {[%clk 0:00:10.4]} 28.
g4 {[%clk 0:00:13.9]} 28... fxg4 {[%clk 0:00:08.8]} 29. f5 {[%clk 0:00:14.4]}
29... c5 {[%clk 0:00:07.1]} 30. fxe6 {[%clk 0:00:13.8]} 30... Bg6 {[%clk
0:00:07.3]} 31. Qxd5 {[%clk 0:00:12.5]} 31... cxd4 {[%clk 0:00:05.1]} 32. Qd7+
{[%clk 0:00:11.7]} 32... Bg7 {[%clk 0:00:03.9]} 33. Qxd4 {[%clk 0:00:12.2]}
33... Bxd4 {[%clk 0:00:03.1]} 34. cxd4 {[%clk 0:00:12.5]} 34... Qxd4 {[%clk
0:00:03]} 35. Rc3 {[%clk 0:00:12.3]} 35... Rd8 {[%clk 0:00:02.7]} 36. e7 {[%clk
0:00:11.9]} 36... Qxd2# {[%clk 0:00:02.5]} 0-1

[Event "*** SCC Grand Prix: Titled Tuesday Blitz"]
[Site "Chess.com"]
[Date "2020.09.08"]
[Round "6"]
[White "MYMChessAcademy"]
[Black "Wilver92"]
[Result "0-1"]
[WhiteElo "2070"]
[BlackElo "2395"]
[TimeControl "180+1"]
[EndTime "11:07:41 PDT"]
[Termination "Wilver92 won by checkmate"]

1. e4 {[%clk 0:03:00.9]} 1... e6 {[%clk 0:02:59.9]} 2. d4 {[%clk 0:03:00.4]}
2... d5 {[%clk 0:02:58.4]} 3. Nc3 {[%clk 0:02:57.3]} 3... Bb4 {[%clk 0:02:57.4]}
4. e5 {[%clk 0:02:56.2]} 4... c5 {[%clk 0:02:56.5]} 5. a3 {[%clk 0:02:54.8]}
5... Bxc3+ {[%clk 0:02:56]} 6. bxc3 {[%clk 0:02:53.7]} 6... Ne7 {[%clk
0:02:56.9]} 7. Qg4 {[%clk 0:02:51.9]} 7... O-O {[%clk 0:02:56.2]} 8. Nf3 {[%clk
0:02:42.6]} 8... f5 {[%clk 0:02:53.9]} 9. Qg3 {[%clk 0:02:38.5]} 9... Qa5 {[%clk
0:02:52.7]} 10. Bd2 {[%clk 0:02:36.2]} 10... Nbc6 {[%clk 0:02:51.3]} 11. h4
{[%clk 0:02:30.9]} 11... Qa4 {[%clk 0:02:47.6]} 12. Bd3 {[%clk 0:02:28.9]} 12...
cxd4 {[%clk 0:02:42.4]} 13. cxd4 {[%clk 0:02:27]} 13... Nxd4 {[%clk 0:02:41.7]}
14. Nxd4 {[%clk 0:02:25.9]} 14... Qxd4 {[%clk 0:02:41.4]} 15. c3 {[%clk
0:02:25]} 15... Qg4 {[%clk 0:02:32.8]} 16. Qf4 {[%clk 0:02:20.9]} 16... Qxf4
{[%clk 0:02:30]} 17. Bxf4 {[%clk 0:02:19.8]} 17... Bd7 {[%clk 0:02:29.9]} 18.
Bg5 {[%clk 0:02:16.5]} 18... Kf7 {[%clk 0:02:28.6]} 19. h5 {[%clk 0:02:14.5]}
19... Rac8 {[%clk 0:02:27.9]} 20. Kd2 {[%clk 0:02:12.7]} 20... Rc7 {[%clk
0:02:24.9]} 21. f3 {[%clk 0:02:12.4]} 21... Rfc8 {[%clk 0:02:24.8]} 22. g4
{[%clk 0:02:11.7]} 22... Rxc3 {[%clk 0:02:21.5]} 23. Bxe7 {[%clk 0:02:08.2]}
23... Kxe7 {[%clk 0:02:21.3]} 24. gxf5 {[%clk 0:02:07.7]} 24... exf5 {[%clk
0:02:22.2]} 25. Rhg1 {[%clk 0:02:07]} 25... Kf8 {[%clk 0:02:18.7]} 26. Rg3
{[%clk 0:02:06.2]} 26... R3c7 {[%clk 0:02:13]} 27. Rag1 {[%clk 0:02:02.9]} 27...
Be6 {[%clk 0:02:12.8]} 28. Rg5 {[%clk 0:01:57]} 28... f4 {[%clk 0:02:11.3]} 29.
Bf5 {[%clk 0:01:53]} 29... Bxf5 {[%clk 0:02:05.6]} 30. Rxf5+ {[%clk 0:01:53.9]}
30... Kg8 {[%clk 0:02:05.8]} 31. Rxf4 {[%clk 0:01:51.6]} 31... Rc2+ {[%clk
0:02:06.2]} 32. Ke3 {[%clk 0:01:51.2]} 32... R8c3+ {[%clk 0:02:05.4]} 33. Kd4
{[%clk 0:01:50.3]} 33... Rc4+ {[%clk 0:02:05.2]} 34. Ke3 {[%clk 0:01:50]} 34...
R2c3+ {[%clk 0:02:03.3]} 35. Kd2 {[%clk 0:01:47.5]} 35... Rxf4 {[%clk 0:02:03]}
36. Kxc3 {[%clk 0:01:47.1]} 36... Rxf3+ {[%clk 0:02:02.5]} 37. Kd4 {[%clk
0:01:47.3]} 37... Rxa3 {[%clk 0:02:03]} 38. Kxd5 {[%clk 0:01:47.6]} 38... Rd3+
{[%clk 0:02:02]} 39. Ke6 {[%clk 0:01:46.6]} 39... h6 {[%clk 0:01:53]} 40. Kf5
{[%clk 0:01:43.6]} 40... Rf3+ {[%clk 0:01:52.5]} 41. Ke4 {[%clk 0:01:43.5]}
41... Rf2 {[%clk 0:01:52.4]} 42. e6 {[%clk 0:01:42.9]} 42... Kf8 {[%clk
0:01:52.8]} 43. Kd5 {[%clk 0:01:37.2]} 43... a5 {[%clk 0:01:50.4]} 44. Rc1
{[%clk 0:01:30.9]} 44... Rd2+ {[%clk 0:01:44]} 45. Ke5 {[%clk 0:01:30.2]} 45...
Re2+ {[%clk 0:01:39.5]} 46. Kd5 {[%clk 0:01:29.6]} 46... a4 {[%clk 0:01:35.4]}
47. Rc8+ {[%clk 0:01:28.4]} 47... Ke7 {[%clk 0:01:35.1]} 48. Rc7+ {[%clk
0:01:28.4]} 48... Kf6 {[%clk 0:01:34.1]} 49. Rf7+ {[%clk 0:01:26.3]} 49... Kg5
{[%clk 0:01:34]} 50. Rxg7+ {[%clk 0:01:22.3]} 50... Kxh5 {[%clk 0:01:34.2]} 51.
Rxb7 {[%clk 0:01:21.6]} 51... a3 {[%clk 0:01:32.8]} 52. Ra7 {[%clk 0:01:17.4]}
52... a2 {[%clk 0:01:32.4]} 53. Kd6 {[%clk 0:01:12.1]} 53... Kg6 {[%clk
0:01:31]} 54. e7 {[%clk 0:01:09.9]} 54... Kf7 {[%clk 0:01:31.1]} 55. Ra4 {[%clk
0:00:39.7]} 55... Rd2+ {[%clk 0:01:28.1]} 56. Ke5 {[%clk 0:00:34.7]} 56... Kxe7
{[%clk 0:01:27.4]} 57. Ra7+ {[%clk 0:00:35.2]} 57... Kd8 {[%clk 0:01:27.4]} 58.
Ra8+ {[%clk 0:00:35.4]} 58... Kc7 {[%clk 0:01:26.5]} 59. Ra7+ {[%clk 0:00:35.9]}
59... Kb6 {[%clk 0:01:26.1]} 60. Ra3 {[%clk 0:00:36.4]} 60... h5 {[%clk
0:01:24.9]} 61. Kf5 {[%clk 0:00:34.8]} 61... Kb5 {[%clk 0:01:22]} 62. Kg5 {[%clk
0:00:34.3]} 62... h4 {[%clk 0:01:22.1]} 63. Kxh4 {[%clk 0:00:33]} 63... Rd4+
{[%clk 0:01:22.2]} 64. Kg3 {[%clk 0:00:32.5]} 64... Ra4 {[%clk 0:01:23]} 65.
Rxa4 {[%clk 0:00:31.1]} 65... Kxa4 {[%clk 0:01:23.9]} 66. Kf4 {[%clk 0:00:31.4]}
66... a1=Q {[%clk 0:01:24.6]} 67. Ke3 {[%clk 0:00:31.7]} 67... Qe5+ {[%clk
0:01:24.6]} 68. Kf3 {[%clk 0:00:32.3]} 68... Kb4 {[%clk 0:01:25.5]} 69. Kg4
{[%clk 0:00:32.8]} 69... Kc3 {[%clk 0:01:26.4]} 70. Kh3 {[%clk 0:00:33.6]} 70...
Kd3 {[%clk 0:01:27.3]} 71. Kh4 {[%clk 0:00:34.5]} 71... Qg7 {[%clk 0:01:27.1]}
72. Kh3 {[%clk 0:00:35.4]} 72... Ke2 {[%clk 0:01:27.2]} 73. Kh2 {[%clk
0:00:36.3]} 73... Kf3 {[%clk 0:01:27.8]} 74. Kh3 {[%clk 0:00:37.1]} 74... Qh6#
{[%clk 0:01:27.8]} 0-1